[Event "*** Titled Tuesday Blitz"]
[Site "Chess.com"]
[Date "2019.10.01"]
[Round "5"]
[White "monalize"]
[Black "Dhaydon19"]
[Result "1/2-1/2"]
[WhiteElo "2414"]
[BlackElo "2676"]
[TimeControl "180+2"]
[EndTime "14:13:18 PDT"]
[Termination "Game drawn by repetition"]

1. e4 {[%clk 0:03:01.9]} 1... e6 {[%clk 0:02:59.4]} 2. d4 {[%clk 0:02:59.8]}
2... d5 {[%clk 0:03:01.3]} 3. exd5 {[%clk 0:02:59.1]} 3... exd5 {[%clk
0:03:02.3]} 4. Bd3 {[%clk 0:02:59.7]} 4... Nf6 {[%clk 0:03:04.2]} 5. Qf3 {[%clk
0:02:57.7]} 5... Be7 {[%clk 0:03:06.1]} 6. h3 {[%clk 0:02:56.4]} 6... O-O {[%clk
0:03:07.4]} 7. Ne2 {[%clk 0:02:56.8]} 7... c5 {[%clk 0:03:06.9]} 8. dxc5 {[%clk
0:02:56.8]} 8... Qa5+ {[%clk 0:03:06.4]} 9. Nbc3 {[%clk 0:02:52.6]} 9... Nc6
{[%clk 0:03:04.7]} 10. O-O {[%clk 0:02:52.3]} 10... Ne5 {[%clk 0:03:03.4]} 11.
Qg3 {[%clk 0:02:49.5]} 11... Nxd3 {[%clk 0:03:03.2]} 12. Qxd3 {[%clk 0:02:49.6]}
12... Qxc5 {[%clk 0:03:02.9]} 13. Be3 {[%clk 0:02:48.8]} 13... Qc4 {[%clk
0:02:57.5]} 14. Rad1 {[%clk 0:02:39.8]} 14... Be6 {[%clk 0:02:56.4]} 15. Nd4
{[%clk 0:02:33.5]} 15... Qxd3 {[%clk 0:02:53.5]} 16. Rxd3 {[%clk 0:02:33.5]}
16... Bd7 {[%clk 0:02:55.4]} 17. Re1 {[%clk 0:02:31.7]} 17... Rfe8 {[%clk
0:02:54.1]} 18. Red1 {[%clk 0:02:23.9]} 18... h6 {[%clk 0:02:52.6]} 19. Ndb5
{[%clk 0:02:14.1]} 19... Bf5 {[%clk 0:02:50.5]} 20. R3d2 {[%clk 0:02:13.1]}
20... Bd8 {[%clk 0:02:19.2]} 21. Nd6 {[%clk 0:02:10.7]} 21... Rxe3 {[%clk
0:02:14.4]} 22. fxe3 {[%clk 0:02:09.2]} 22... Be6 {[%clk 0:02:14.7]} 23. Nxb7
{[%clk 0:01:37.5]} 23... Bb6 {[%clk 0:02:14.8]} 24. Kf2 {[%clk 0:01:38.1]} 24...
Rb8 {[%clk 0:02:07.5]} 25. Nd6 {[%clk 0:01:35.8]} 25... a6 {[%clk 0:02:07.1]}
26. g4 {[%clk 0:01:34.7]} 26... g6 {[%clk 0:02:05.8]} 27. Kf3 {[%clk 0:01:32.8]}
27... Bc7 {[%clk 0:01:47.1]} 28. Nxd5 {[%clk 0:00:52.6]} 28... Nxd5 {[%clk
0:01:46.8]} 29. Rxd5 {[%clk 0:00:52.5]} 29... Bxd5+ {[%clk 0:01:48.5]} 30. Rxd5
{[%clk 0:00:52.3]} 30... Rxb2 {[%clk 0:01:49.1]} 31. Ne4 {[%clk 0:00:49.2]}
31... Rxa2 {[%clk 0:01:41.2]} 32. Rc5 {[%clk 0:00:48.6]} 32... Ba5 {[%clk
0:01:26.5]} 33. Rc6 {[%clk 0:00:43.1]} 33... Be1 {[%clk 0:01:22.7]} 34. Rc7
{[%clk 0:00:35.3]} 34... Bb4 {[%clk 0:01:08.9]} 35. c4 {[%clk 0:00:25.3]} 35...
a5 {[%clk 0:01:08.8]} 36. c5 {[%clk 0:00:25.7]} 36... Rc2 {[%clk 0:01:09.1]} 37.
Ra7 {[%clk 0:00:23.5]} 37... f5 {[%clk 0:01:07.4]} 38. gxf5 {[%clk 0:00:21.3]}
38... gxf5 {[%clk 0:01:06.7]} 39. Nf6+ {[%clk 0:00:22.1]} 39... Kf8 {[%clk
0:01:05.3]} 40. Kf4 {[%clk 0:00:21.1]} 40... Bxc5 {[%clk 0:01:03.8]} 41. Rxa5
{[%clk 0:00:20.4]} 41... Kf7 {[%clk 0:01:01.7]} 42. Kxf5 {[%clk 0:00:15.6]}
42... Rf2+ {[%clk 0:01:00.4]} 43. Ke4 {[%clk 0:00:15.8]} 43... Kxf6 {[%clk
0:00:35.3]} 44. Rxc5 {[%clk 0:00:16.1]} 44... Rh2 {[%clk 0:00:36.6]} 45. Rh5
{[%clk 0:00:16.6]} 45... Kg6 {[%clk 0:00:37.9]} 46. Rh4 {[%clk 0:00:17.2]} 46...
Kg5 {[%clk 0:00:39.3]} 47. Rg4+ {[%clk 0:00:18.2]} 47... Kf6 {[%clk 0:00:41]}
48. Rg3 {[%clk 0:00:19]} 48... h5 {[%clk 0:00:40.3]} 49. Kf4 {[%clk 0:00:19.2]}
49... Rf2+ {[%clk 0:00:38.3]} 50. Rf3 {[%clk 0:00:19.9]} 50... Ra2 {[%clk
0:00:39.4]} 51. Kg3+ {[%clk 0:00:20.2]} 51... Kg5 {[%clk 0:00:39.8]} 52. h4+
{[%clk 0:00:20.5]} 52... Kg6 {[%clk 0:00:41.2]} 53. e4 {[%clk 0:00:21.2]} 53...
Re2 {[%clk 0:00:40.7]} 54. Kf4 {[%clk 0:00:21.2]} 54... Rh2 {[%clk 0:00:41.7]}
55. Kg3 {[%clk 0:00:20]} 55... Re2 {[%clk 0:00:42.2]} 56. Kf4 {[%clk 0:00:20.3]}
56... Rh2 {[%clk 0:00:42.1]} 57. Kg3 {[%clk 0:00:21.1]} 57... Re2 {[%clk
0:00:42.8]} 1/2-1/2

[Event "*** Titled Tuesday Blitz"]
[Site "Chess.com"]
[Date "2019.10.01"]
[Round "5"]
[White "Olga_Zhuravleva"]
[Black "PotapovaM"]
[Result "0-1"]
[WhiteElo "2192"]
[BlackElo "2426"]
[TimeControl "180+2"]
[EndTime "14:13:26 PDT"]
[Termination "PotapovaM won by resignation"]

1. e4 {[%clk 0:03:01.9]} 1... g6 {[%clk 0:03:00]} 2. d4 {[%clk 0:03:02.3]} 2...
Bg7 {[%clk 0:03:01.3]} 3. c3 {[%clk 0:03:04]} 3... c6 {[%clk 0:03:01.5]} 4. Bd3
{[%clk 0:03:02.6]} 4... d5 {[%clk 0:03:02.4]} 5. Nf3 {[%clk 0:02:58.4]} 5... Nh6
{[%clk 0:02:57.8]} 6. O-O {[%clk 0:02:56.6]} 6... O-O {[%clk 0:02:58]} 7. h3
{[%clk 0:02:56.5]} 7... f6 {[%clk 0:02:58.7]} 8. exd5 {[%clk 0:02:53.9]} 8...
cxd5 {[%clk 0:02:59.4]} 9. Re1 {[%clk 0:02:53.4]} 9... Nc6 {[%clk 0:02:59.7]}
10. Nbd2 {[%clk 0:02:52.8]} 10... Nf7 {[%clk 0:02:56.6]} 11. Nf1 {[%clk
0:02:52.7]} 11... e5 {[%clk 0:02:54]} 12. dxe5 {[%clk 0:02:53]} 12... fxe5
{[%clk 0:02:55.8]} 13. Bc2 {[%clk 0:02:52]} 13... e4 {[%clk 0:02:36.4]} 14. Nd4
{[%clk 0:02:41.2]} 14... Nxd4 {[%clk 0:02:36.2]} 15. cxd4 {[%clk 0:02:41.6]}
15... Nd6 {[%clk 0:02:38.1]} 16. Be3 {[%clk 0:02:38.3]} 16... Be6 {[%clk
0:02:36.4]} 17. Bb3 {[%clk 0:02:38.7]} 17... a5 {[%clk 0:02:34.6]} 18. a3 {[%clk
0:02:36]} 18... Qe7 {[%clk 0:02:32.1]} 19. Qd2 {[%clk 0:02:32.4]} 19... b5
{[%clk 0:02:31.8]} 20. Bg5 {[%clk 0:02:25.2]} 20... Qf7 {[%clk 0:02:30.2]} 21.
Be3 {[%clk 0:02:06.9]} 21... Rfc8 {[%clk 0:02:29]} 22. Rac1 {[%clk 0:02:06.2]}
22... Nc4 {[%clk 0:02:19]} 23. Qe2 {[%clk 0:02:05.2]} 23... a4 {[%clk
0:02:17.5]} 24. Ba2 {[%clk 0:02:04.6]} 24... Bf8 {[%clk 0:02:15.2]} 25. Ng3
{[%clk 0:01:49.2]} 25... Bd6 {[%clk 0:02:12.9]} 26. Rf1 {[%clk 0:01:40]} 26...
Qd7 {[%clk 0:02:05.1]} 27. Bxc4 {[%clk 0:01:34.8]} 27... bxc4 {[%clk 0:02:03.6]}
28. Qd2 {[%clk 0:01:34.8]} 28... Rab8 {[%clk 0:01:53.9]} 29. Ne2 {[%clk
0:01:35.2]} 29... Rb3 {[%clk 0:01:54.7]} 30. Nc3 {[%clk 0:01:32.6]} 30... Rcb8
{[%clk 0:01:53.5]} 31. Rc2 {[%clk 0:01:34]} 31... Bc7 {[%clk 0:01:51.9]} 32. Bf4
{[%clk 0:01:31.7]} 32... Bxf4 {[%clk 0:01:46.6]} 33. Qxf4 {[%clk 0:01:33.1]}
33... Rxb2 {[%clk 0:01:47.1]} 34. Rxb2 {[%clk 0:01:28.9]} 34... Rxb2 {[%clk
0:01:49]} 35. Qe5 {[%clk 0:01:29]} 35... Rb6 {[%clk 0:01:30.4]} 36. f3 {[%clk
0:01:28]} 36... exf3 {[%clk 0:01:04.2]} 37. Rxf3 {[%clk 0:01:27.9]} 37... Bf7
{[%clk 0:01:05.6]} 38. Qf4 {[%clk 0:01:12]} 38... Rb7 {[%clk 0:00:55.8]} 39. Qf6
{[%clk 0:01:05.7]} 39... Qe7 {[%clk 0:00:50.1]} 40. Qxe7 {[%clk 0:01:03.1]}
40... Rxe7 {[%clk 0:00:52]} 41. Nxa4 {[%clk 0:01:04.3]} 41... Re4 {[%clk
0:00:40.3]} 42. Nc5 {[%clk 0:00:52.6]} 42... Rxd4 {[%clk 0:00:41.7]} 43. a4
{[%clk 0:00:54.2]} 43... Rd1+ {[%clk 0:00:42.7]} 44. Kf2 {[%clk 0:00:54]} 44...
Ra1 {[%clk 0:00:42.5]} 45. Ke3 {[%clk 0:00:49]} 45... Rd1 {[%clk 0:00:38.5]} 46.
Ke2 {[%clk 0:00:46]} 46... Ra1 {[%clk 0:00:28.6]} 47. Ke3 {[%clk 0:00:46.9]}
47... Ra2 {[%clk 0:00:27.7]} 48. Kd4 {[%clk 0:00:37.6]} 48... Rxg2 {[%clk
0:00:25.2]} 49. a5 {[%clk 0:00:37.6]} 49... Rd2+ {[%clk 0:00:23.9]} 50. Ke5
{[%clk 0:00:36.8]} 50... d4 {[%clk 0:00:18.1]} 51. Ra3 {[%clk 0:00:31.8]} 51...
d3 {[%clk 0:00:17.6]} 52. a6 {[%clk 0:00:32]} 52... Re2+ {[%clk 0:00:18.9]} 53.
Kf6 {[%clk 0:00:23.7]} 53... d2 {[%clk 0:00:17.7]} 54. a7 {[%clk 0:00:24.6]}
54... Rf2+ {[%clk 0:00:18.3]} 55. Kg5 {[%clk 0:00:22.4]} 55... d1=Q {[%clk
0:00:15.1]} 56. a8=Q+ {[%clk 0:00:22.6]} 56... Kg7 {[%clk 0:00:16.6]} 57. Qe4
{[%clk 0:00:18.6]} 57... Qg1+ {[%clk 0:00:16.2]} 58. Qg4 {[%clk 0:00:17.8]}
58... Rg2 {[%clk 0:00:16.7]} 59. Rg3 {[%clk 0:00:18.9]} 59... Rxg3 {[%clk
0:00:17.3]} 0-1

[Event "*** Titled Tuesday Blitz"]
[Site "Chess.com"]
[Date "2019.10.01"]
[Round "5"]
[White "HouseOfDurin"]
[Black "Vojtap"]
[Result "1-0"]
[WhiteElo "2107"]
[BlackElo "2166"]
[TimeControl "180+2"]
[EndTime "14:13:29 PDT"]
[Termination "HouseOfDurin won by resignation"]

1. d4 {[%clk 0:03:01.9]} 1... Nf6 {[%clk 0:03:00.3]} 2. Bg5 {[%clk 0:03:03.2]}
2... Ne4 {[%clk 0:02:59.4]} 3. h4 {[%clk 0:03:03.7]} 3... c5 {[%clk 0:02:58.5]}
4. dxc5 {[%clk 0:03:01.8]} 4... Qa5+ {[%clk 0:02:56.7]} 5. Nd2 {[%clk 0:03:02]}
5... Nxg5 {[%clk 0:02:54.3]} 6. hxg5 {[%clk 0:03:02.2]} 6... Qxc5 {[%clk
0:02:54.5]} 7. Ngf3 {[%clk 0:03:02.9]} 7... Nc6 {[%clk 0:02:53.1]} 8. c3 {[%clk
0:02:58.4]} 8... d5 {[%clk 0:02:41.1]} 9. e4 {[%clk 0:02:28.4]} 9... dxe4 {[%clk
0:02:22.5]} 10. Nxe4 {[%clk 0:02:30.3]} 10... Qf5 {[%clk 0:02:20.1]} 11. Bd3
{[%clk 0:02:21.4]} 11... Qf4 {[%clk 0:02:10.8]} 12. Qe2 {[%clk 0:01:57.5]} 12...
Bg4 {[%clk 0:01:55.1]} 13. Rh4 {[%clk 0:01:44.3]} 13... Bxf3 {[%clk 0:01:54.9]}
14. Rxf4 {[%clk 0:01:43.9]} 14... Bxe2 {[%clk 0:01:55.4]} 15. Kxe2 {[%clk
0:01:42.8]} 15... e5 {[%clk 0:01:55.6]} 16. Rh4 {[%clk 0:01:33]} 16... Be7
{[%clk 0:01:54]} 17. Rah1 {[%clk 0:01:26.3]} 17... h6 {[%clk 0:01:26.4]} 18.
R4h3 {[%clk 0:01:24.3]} 18... O-O-O {[%clk 0:01:17.5]} 19. gxh6 {[%clk
0:01:24.1]} 19... gxh6 {[%clk 0:01:17.8]} 20. Rxh6 {[%clk 0:01:24.7]} 20... Rhg8
{[%clk 0:01:16.9]} 21. g3 {[%clk 0:01:22.1]} 21... f5 {[%clk 0:01:17.1]} 22. Nf6
{[%clk 0:01:13]} 22... e4 {[%clk 0:01:11.9]} 23. Bb5 {[%clk 0:01:01.1]} 23...
Rg7 {[%clk 0:00:55.2]} 24. Bxc6 {[%clk 0:00:47.5]} 24... bxc6 {[%clk 0:00:55]}
25. Nh5 {[%clk 0:00:44.8]} 25... Rgg8 {[%clk 0:00:36]} 26. Rxc6+ {[%clk
0:00:45.4]} 26... Kb7 {[%clk 0:00:36.7]} 27. Re6 {[%clk 0:00:37.6]} 27... Bg5
{[%clk 0:00:34.3]} 28. Nf4 {[%clk 0:00:37.6]} 28... Rd7 {[%clk 0:00:32.2]} 29.
Rd1 {[%clk 0:00:33.8]} 29... Rxd1 {[%clk 0:00:21.6]} 30. Kxd1 {[%clk 0:00:35.7]}
30... Bxf4 {[%clk 0:00:23]} 31. gxf4 {[%clk 0:00:37]} 31... Rg4 {[%clk
0:00:24.6]} 32. Ke2 {[%clk 0:00:26.9]} 32... Rxf4 {[%clk 0:00:25.6]} 33. Rf6
{[%clk 0:00:25.4]} 33... Rf3 {[%clk 0:00:25.1]} 34. c4 {[%clk 0:00:23.3]} 34...
a5 {[%clk 0:00:23.1]} 35. b3 {[%clk 0:00:24.1]} 35... a4 {[%clk 0:00:20.7]} 36.
bxa4 {[%clk 0:00:23.3]} 36... Ra3 {[%clk 0:00:21.4]} 37. Rxf5 {[%clk 0:00:24.1]}
37... Rxa4 {[%clk 0:00:19.2]} 38. Ke3 {[%clk 0:00:21.4]} 38... Rxc4 {[%clk
0:00:19.2]} 39. Rf4 {[%clk 0:00:18.3]} 39... Ra4 {[%clk 0:00:18.7]} 40. Rxe4
{[%clk 0:00:18.9]} 40... Rxa2 {[%clk 0:00:19.8]} 41. Rc4 {[%clk 0:00:19.2]}
41... Ra6 {[%clk 0:00:12.3]} 42. Ke4 {[%clk 0:00:19.9]} 42... Rf6 {[%clk
0:00:11]} 43. f4 {[%clk 0:00:20.4]} 43... Kb6 {[%clk 0:00:09.3]} 44. Ke5 {[%clk
0:00:21]} 44... Rf8 {[%clk 0:00:09.1]} 45. f5 {[%clk 0:00:22.1]} 45... Kb5
{[%clk 0:00:10.2]} 46. Rc1 {[%clk 0:00:22.9]} 46... Re8+ {[%clk 0:00:10.2]} 47.
Kd6 {[%clk 0:00:23]} 47... Rf8 {[%clk 0:00:08.9]} 48. Ke6 {[%clk 0:00:23.3]}
48... Re8+ {[%clk 0:00:10.1]} 49. Kf7 {[%clk 0:00:24.2]} 49... Re2 {[%clk
0:00:09.5]} 50. f6 {[%clk 0:00:25.2]} 50... Rf2 {[%clk 0:00:09.9]} 51. Ke7
{[%clk 0:00:25.4]} 51... Re2+ {[%clk 0:00:09.6]} 52. Kf8 {[%clk 0:00:26.2]}
52... Rf2 {[%clk 0:00:10]} 53. f7 {[%clk 0:00:27.7]} 53... Kb6 {[%clk
0:00:08.5]} 54. Re1 {[%clk 0:00:26]} 54... Kc7 {[%clk 0:00:07.8]} 55. Ke8 {[%clk
0:00:26.6]} 55... Rf3 {[%clk 0:00:03.1]} 56. f8=Q {[%clk 0:00:25.8]} 1-0

[Event "*** Titled Tuesday Blitz"]
[Site "Chess.com"]
[Date "2019.10.01"]
[Round "5"]
[White "Bathory44"]
[Black "kuli4ik"]
[Result "1/2-1/2"]
[WhiteElo "2622"]
[BlackElo "2779"]
[TimeControl "180+2"]
[EndTime "14:13:32 PDT"]
[Termination "Game drawn by repetition"]

1. e4 {[%clk 0:03:01.9]} 1... e6 {[%clk 0:03:00.5]} 2. d4 {[%clk 0:03:02.5]}
2... d5 {[%clk 0:03:02.4]} 3. Nd2 {[%clk 0:03:03.9]} 3... dxe4 {[%clk 0:03:01]}
4. Nxe4 {[%clk 0:03:04.6]} 4... Bd7 {[%clk 0:03:02.9]} 5. Nf3 {[%clk 0:03:04.5]}
5... Bc6 {[%clk 0:03:01.9]} 6. Bd3 {[%clk 0:03:05.5]} 6... Nd7 {[%clk
0:03:01.8]} 7. O-O {[%clk 0:03:05.8]} 7... Bxe4 {[%clk 0:03:00.5]} 8. Bxe4
{[%clk 0:03:06.5]} 8... c6 {[%clk 0:03:02.4]} 9. c3 {[%clk 0:03:06.2]} 9... Ngf6
{[%clk 0:03:03.1]} 10. Bc2 {[%clk 0:03:07.2]} 10... g6 {[%clk 0:03:04.5]} 11. b3
{[%clk 0:02:59.1]} 11... Bg7 {[%clk 0:03:04.4]} 12. Ba3 {[%clk 0:02:59.1]} 12...
Bf8 {[%clk 0:03:05.2]} 13. Bb2 {[%clk 0:02:56]} 13... Bg7 {[%clk 0:03:06]} 14.
c4 {[%clk 0:02:50.9]} 14... O-O {[%clk 0:03:06.2]} 15. Qe2 {[%clk 0:02:50.3]}
15... Qc7 {[%clk 0:03:05.4]} 16. Rad1 {[%clk 0:02:46.2]} 16... Rad8 {[%clk
0:03:05.6]} 17. Bb1 {[%clk 0:02:28.2]} 17... Rfe8 {[%clk 0:03:04.5]} 18. h4
{[%clk 0:02:22.6]} 18... a6 {[%clk 0:03:03.1]} 19. g3 {[%clk 0:02:19]} 19... c5
{[%clk 0:02:45.3]} 20. dxc5 {[%clk 0:02:15.2]} 20... Nxc5 {[%clk 0:02:43.7]} 21.
Be5 {[%clk 0:02:14.2]} 21... Qe7 {[%clk 0:02:37.3]} 22. b4 {[%clk 0:01:49.4]}
22... Na4 {[%clk 0:02:28.8]} 23. a3 {[%clk 0:01:47.9]} 23... Nd7 {[%clk
0:02:22.3]} 24. Bxg7 {[%clk 0:01:38.9]} 24... Kxg7 {[%clk 0:02:23.3]} 25. c5
{[%clk 0:01:38.6]} 25... Nc3 {[%clk 0:02:11.1]} 26. Qb2 {[%clk 0:01:37.5]} 26...
Qf6 {[%clk 0:02:11]} 27. Rd3 {[%clk 0:01:33.1]} 27... Nd5 {[%clk 0:01:52.5]} 28.
Qd2 {[%clk 0:01:30]} 28... a5 {[%clk 0:01:42.5]} 29. Ba2 {[%clk 0:01:29.5]}
29... axb4 {[%clk 0:01:41.2]} 30. axb4 {[%clk 0:01:26.5]} 30... Nb8 {[%clk
0:01:31.9]} 31. Bxd5 {[%clk 0:01:22.8]} 31... exd5 {[%clk 0:01:32.8]} 32. h5
{[%clk 0:01:15.8]} 32... Nc6 {[%clk 0:01:30.7]} 33. h6+ {[%clk 0:01:16.1]} 33...
Kg8 {[%clk 0:01:28.6]} 34. b5 {[%clk 0:01:13.2]} 34... Ne5 {[%clk 0:01:20.5]}
35. Nxe5 {[%clk 0:01:14]} 35... Rxe5 {[%clk 0:01:20.8]} 36. Re1 {[%clk
0:01:12.8]} 36... Rxe1+ {[%clk 0:01:17.4]} 37. Qxe1 {[%clk 0:01:13.4]} 37... Kf8
{[%clk 0:01:16.1]} 38. Qe2 {[%clk 0:00:50.1]} 38... Qe6 {[%clk 0:00:56.5]} 39.
Re3 {[%clk 0:00:49.5]} 39... Qf6 {[%clk 0:00:53]} 40. Rf3 {[%clk 0:00:49]} 40...
Qa1+ {[%clk 0:00:46.7]} 41. Kg2 {[%clk 0:00:49.5]} 41... Re8 {[%clk 0:00:47.8]}
42. Re3 {[%clk 0:00:44.7]} 42... Rxe3 {[%clk 0:00:46.9]} 43. Qxe3 {[%clk
0:00:46.6]} 43... Qf6 {[%clk 0:00:43.1]} 44. c6 {[%clk 0:00:41.6]} 44... bxc6
{[%clk 0:00:43.4]} 45. Qc5+ {[%clk 0:00:41.7]} 45... Qe7 {[%clk 0:00:34.9]} 46.
Qxc6 {[%clk 0:00:39.2]} 46... Qe4+ {[%clk 0:00:33.8]} 47. Kh2 {[%clk 0:00:40]}
47... Qf3 {[%clk 0:00:31.4]} 48. Qc5+ {[%clk 0:00:40]} 48... Ke8 {[%clk
0:00:30.6]} 49. b6 {[%clk 0:00:39.2]} 49... d4 {[%clk 0:00:20.3]} 50. Qxd4
{[%clk 0:00:40.1]} 50... Qc6 {[%clk 0:00:17.6]} 51. Qh8+ {[%clk 0:00:28.9]}
51... Ke7 {[%clk 0:00:18]} 52. Qxh7 {[%clk 0:00:26.1]} 52... Qxb6 {[%clk
0:00:15.1]} 53. Kg1 {[%clk 0:00:26.9]} 53... Qb1+ {[%clk 0:00:15.4]} 54. Kh2
{[%clk 0:00:25.9]} 54... Qf5 {[%clk 0:00:15.7]} 55. f4 {[%clk 0:00:17.2]} 55...
Qh5+ {[%clk 0:00:15.8]} 56. Kg2 {[%clk 0:00:14.3]} 56... Qe2+ {[%clk 0:00:15]}
57. Kg1 {[%clk 0:00:14.1]} 57... Qe1+ {[%clk 0:00:16.3]} 58. Kg2 {[%clk
0:00:15]} 58... Qe2+ {[%clk 0:00:17.5]} 59. Kg1 {[%clk 0:00:16.2]} 59... Qe1+
{[%clk 0:00:18.7]} 60. Kg2 {[%clk 0:00:17.5]} 60... Qe2+ {[%clk 0:00:19.4]}
1/2-1/2

[Event "*** Titled Tuesday Blitz"]
[Site "Chess.com"]
[Date "2019.10.01"]
[Round "5"]
[White "IMTominho"]
[Black "ChessQueen"]
[Result "0-1"]
[WhiteElo "2760"]
[BlackElo "2618"]
[TimeControl "180+2"]
[EndTime "14:13:33 PDT"]
[Termination "ChessQueen won by resignation"]

1. d4 {[%clk 0:03:01.9]} 1... Nf6 {[%clk 0:03:00.3]} 2. c4 {[%clk 0:03:02.3]}
2... e6 {[%clk 0:03:01.4]} 3. Nf3 {[%clk 0:03:03.1]} 3... d5 {[%clk 0:03:02.1]}
4. Bg5 {[%clk 0:03:02.9]} 4... dxc4 {[%clk 0:02:58.8]} 5. Nc3 {[%clk 0:03:02.5]}
5... Bb4 {[%clk 0:02:59.2]} 6. a3 {[%clk 0:03:00]} 6... Bxc3+ {[%clk 0:02:55.3]}
7. bxc3 {[%clk 0:03:01.9]} 7... c6 {[%clk 0:02:48.5]} 8. e4 {[%clk 0:02:53.8]}
8... Qa5 {[%clk 0:02:49]} 9. e5 {[%clk 0:02:34.9]} 9... Ne4 {[%clk 0:02:41.2]}
10. Bd2 {[%clk 0:02:36]} 10... Nxd2 {[%clk 0:02:23.8]} 11. Qxd2 {[%clk
0:02:35.2]} 11... c5 {[%clk 0:02:19.2]} 12. Bxc4 {[%clk 0:02:19.5]} 12... cxd4
{[%clk 0:02:20.2]} 13. cxd4 {[%clk 0:02:19]} 13... Qxd2+ {[%clk 0:02:19.6]} 14.
Kxd2 {[%clk 0:02:13.5]} 14... Ke7 {[%clk 0:02:17.5]} 15. Ke3 {[%clk 0:02:06.2]}
15... Bd7 {[%clk 0:02:14.9]} 16. d5 {[%clk 0:01:58.5]} 16... exd5 {[%clk
0:02:14.3]} 17. Bxd5 {[%clk 0:02:00.4]} 17... Bc6 {[%clk 0:02:15.8]} 18. Rhd1
{[%clk 0:01:58.3]} 18... Rd8 {[%clk 0:02:10.9]} 19. Bb3 {[%clk 0:01:40.2]} 19...
Nd7 {[%clk 0:01:57.9]} 20. Kf4 {[%clk 0:01:34.2]} 20... Bxf3 {[%clk 0:01:54.6]}
21. gxf3 {[%clk 0:01:33]} 21... Nc5 {[%clk 0:01:55.2]} 22. Bc4 {[%clk
0:01:30.4]} 22... b6 {[%clk 0:01:48.6]} 23. Ke3 {[%clk 0:01:29.8]} 23... Na4
{[%clk 0:01:44.3]} 24. Bb3 {[%clk 0:01:12.9]} 24... Nc5 {[%clk 0:01:39.8]} 25.
Bd5 {[%clk 0:01:12.9]} 25... Rac8 {[%clk 0:01:37.9]} 26. Rac1 {[%clk 0:00:59.7]}
26... Na4 {[%clk 0:01:34.6]} 27. Bb3 {[%clk 0:00:54.9]} 27... Rxc1 {[%clk
0:01:23.3]} 28. Rxc1 {[%clk 0:00:55]} 28... Nc5 {[%clk 0:01:24.2]} 29. Bc4
{[%clk 0:00:55.9]} 29... Nd7 {[%clk 0:01:20]} 30. f4 {[%clk 0:00:50.8]} 30...
Rc8 {[%clk 0:01:20.9]} 31. Rc2 {[%clk 0:00:46.8]} 31... Rc5 {[%clk 0:01:16.6]}
32. Kd4 {[%clk 0:00:44.3]} 32... Nb8 {[%clk 0:01:14.5]} 33. Bd3 {[%clk
0:00:29.6]} 33... Nc6+ {[%clk 0:01:13]} 34. Ke4 {[%clk 0:00:30.9]} 34... Rxc2
{[%clk 0:00:49.3]} 35. Bxc2 {[%clk 0:00:32.8]} 35... Nd8 {[%clk 0:00:45]} 36. f5
{[%clk 0:00:31.2]} 36... f6 {[%clk 0:00:38.5]} 37. f4 {[%clk 0:00:31.2]} 37...
Nb7 {[%clk 0:00:30.7]} 38. Kd5 {[%clk 0:00:28.3]} 38... Nc5 {[%clk 0:00:31.1]}
39. h4 {[%clk 0:00:27.7]} 39... Kd7 {[%clk 0:00:28.9]} 40. h5 {[%clk 0:00:27]}
40... h6 {[%clk 0:00:28]} 41. Bd1 {[%clk 0:00:19.8]} 41... Nd3 {[%clk
0:00:25.8]} 42. Ba4+ {[%clk 0:00:18.9]} 42... Ke7 {[%clk 0:00:26.2]} 43. e6
{[%clk 0:00:16]} 43... Nxf4+ {[%clk 0:00:27.1]} 44. Ke4 {[%clk 0:00:17.5]} 44...
Nxh5 {[%clk 0:00:20.9]} 45. Kf3 {[%clk 0:00:16]} 45... g6 {[%clk 0:00:20.8]} 46.
Kg4 {[%clk 0:00:10.7]} 46... Ng7 {[%clk 0:00:22.3]} 47. fxg6 {[%clk 0:00:11.7]}
47... f5+ {[%clk 0:00:19.1]} 48. Kf4 {[%clk 0:00:11.9]} 48... Kxe6 {[%clk
0:00:21]} 49. Bb3+ {[%clk 0:00:12.3]} 49... Kf6 {[%clk 0:00:22.5]} 50. Bf7
{[%clk 0:00:13.9]} 50... h5 {[%clk 0:00:22.7]} 51. Kg3 {[%clk 0:00:14.2]} 51...
Kg5 {[%clk 0:00:23.4]} 52. Kf3 {[%clk 0:00:15.1]} 52... h4 {[%clk 0:00:21.2]}
53. Kg2 {[%clk 0:00:16]} 53... Nh5 {[%clk 0:00:21]} 54. Kf3 {[%clk 0:00:16.5]}
54... Ng7 {[%clk 0:00:20.2]} 55. a4 {[%clk 0:00:16.2]} 55... a6 {[%clk
0:00:17.3]} 56. Bc4 {[%clk 0:00:16.4]} 56... b5 {[%clk 0:00:16.9]} 57. Bxb5
{[%clk 0:00:13.4]} 57... axb5 {[%clk 0:00:18.8]} 58. a5 {[%clk 0:00:14.8]} 58...
b4 {[%clk 0:00:18.4]} 59. Ke2 {[%clk 0:00:14.9]} 59... h3 {[%clk 0:00:16.9]} 0-1